[Event "*** Titled Tuesday Blitz"]
[Site "Chess.com"]
[Date "2021.02.16"]
[Round "8"]
[White "MaxLeto"]
[Black "Skillcam"]
[Result "1-0"]
[WhiteElo "2355"]
[BlackElo "2472"]
[TimeControl "180+1"]
[EndTime "11:30:04 PST"]
[Termination "MaxLeto won by resignation"]

1. g4 {[%clk 0:03:00.9]} 1... d5 {[%clk 0:02:59.2]} 2. Bg2 {[%clk 0:03:00.7]}
2... e5 {[%clk 0:02:52]} 3. d4 {[%clk 0:03:00.2]} 3... e4 {[%clk 0:02:52.3]} 4.
g5 {[%clk 0:03:00]} 4... Ne7 {[%clk 0:02:47.2]} 5. c4 {[%clk 0:02:59.2]} 5... c6
{[%clk 0:02:46.8]} 6. Nc3 {[%clk 0:02:59.6]} 6... Nd7 {[%clk 0:02:37]} 7. h4
{[%clk 0:02:56.6]} 7... Nb6 {[%clk 0:02:36.3]} 8. c5 {[%clk 0:02:48.2]} 8... Nd7
{[%clk 0:02:36.6]} 9. Bf4 {[%clk 0:02:48.2]} 9... Ng6 {[%clk 0:02:35.5]} 10. Bg3
{[%clk 0:02:47.4]} 10... f5 {[%clk 0:02:35.2]} 11. e3 {[%clk 0:02:10.6]} 11...
b6 {[%clk 0:02:15.1]} 12. b4 {[%clk 0:02:05.3]} 12... a5 {[%clk 0:02:05.9]} 13.
b5 {[%clk 0:01:48.3]} 13... Bb7 {[%clk 0:02:04]} 14. h5 {[%clk 0:01:05.5]} 14...
Ne7 {[%clk 0:01:57.6]} 15. cxb6 {[%clk 0:00:50.8]} 15... Qxb6 {[%clk 0:01:46.4]}
16. Rb1 {[%clk 0:00:46.3]} 16... c5 {[%clk 0:01:45]} 17. Na4 {[%clk 0:00:40.3]}
17... Qd8 {[%clk 0:01:33.5]} 18. dxc5 {[%clk 0:00:38]} 18... f4 {[%clk
0:01:28.9]} 19. Bxf4 {[%clk 0:00:36.2]} 19... Nf5 {[%clk 0:01:29.5]} 20. c6
{[%clk 0:00:34.3]} 20... Bb4+ {[%clk 0:01:30.4]} 21. Kf1 {[%clk 0:00:33.1]}
21... O-O {[%clk 0:01:23.8]} 22. Qxd5+ {[%clk 0:00:32.4]} 22... Kh8 {[%clk
0:01:23.4]} 23. cxb7 {[%clk 0:00:30.5]} 23... Rb8 {[%clk 0:01:15.5]} 24. Bxe4
{[%clk 0:00:30.3]} 24... Ne7 {[%clk 0:01:05.3]} 25. Qd4 {[%clk 0:00:20.7]} 25...
Nf5 {[%clk 0:00:17.4]} 26. Bxf5 {[%clk 0:00:11.4]} 26... Rxf5 {[%clk 0:00:18.3]}
27. Bxb8 {[%clk 0:00:11.7]} 27... Qxb8 {[%clk 0:00:18.9]} 28. Qxd7 {[%clk
0:00:11.4]} 28... Rf8 {[%clk 0:00:19.8]} 29. h6 {[%clk 0:00:10.6]} 29... Rg8
{[%clk 0:00:18.6]} 30. Nf3 {[%clk 0:00:08.2]} 30... Bd6 {[%clk 0:00:16]} 31. Rd1
{[%clk 0:00:05.4]} 31... Bb4 {[%clk 0:00:13.4]} 32. Nb6 {[%clk 0:00:04.9]} 32...
Qf8 {[%clk 0:00:11.8]} 33. Kg2 {[%clk 0:00:04]} 33... gxh6 {[%clk 0:00:11.2]}
34. g6 {[%clk 0:00:01.9]} 34... Rxg6+ {[%clk 0:00:10.6]} 35. Kf1 {[%clk
0:00:02]} 35... Rg8 {[%clk 0:00:08.7]} 36. Qc8 {[%clk 0:00:02]} 36... Qxf3
{[%clk 0:00:07.6]} 37. Qxg8+ {[%clk 0:00:02.2]} 37... Kxg8 {[%clk 0:00:08.5]}
38. b8=Q+ {[%clk 0:00:03.1]} 38... Bf8 {[%clk 0:00:08.8]} 39. Qg3+ {[%clk
0:00:03.3]} 39... Qxg3 {[%clk 0:00:09.4]} 40. fxg3 {[%clk 0:00:04.2]} 40... Bc5
{[%clk 0:00:10.3]} 41. Nd5 {[%clk 0:00:04.8]} 41... Kg7 {[%clk 0:00:10]} 42. Ke2
{[%clk 0:00:04.6]} 42... a4 {[%clk 0:00:10.3]} 43. Nf4 {[%clk 0:00:05.3]} 43...
Bb6 {[%clk 0:00:09.9]} 44. Nh5+ {[%clk 0:00:06.2]} 44... Kg6 {[%clk 0:00:10.3]}
45. Rd6+ {[%clk 0:00:07.1]} 45... Kg5 {[%clk 0:00:09.7]} 46. Rxb6 {[%clk
0:00:08]} 46... a3 {[%clk 0:00:09.8]} 47. Ra6 {[%clk 0:00:07.8]} 1-0

[Event "*** Titled Tuesday Blitz"]
[Site "Chess.com"]
[Date "2021.02.16"]
[Round "8"]
[White "FMOlexandrProhorov"]
[Black "VFernandezB"]
[Result "0-1"]
[WhiteElo "2127"]
[BlackElo "2439"]
[TimeControl "180+1"]
[EndTime "11:30:05 PST"]
[Termination "VFernandezB won by resignation"]

1. e4 {[%clk 0:02:31]} 1... c5 {[%clk 0:02:59.1]} 2. c3 {[%clk 0:02:30.4]} 2...
g6 {[%clk 0:02:53.2]} 3. d4 {[%clk 0:02:28.9]} 3... cxd4 {[%clk 0:02:53.5]} 4.
cxd4 {[%clk 0:02:29.8]} 4... d5 {[%clk 0:02:50.8]} 5. exd5 {[%clk 0:02:29.1]}
5... Nf6 {[%clk 0:02:48.2]} 6. Nc3 {[%clk 0:02:30]} 6... Bg7 {[%clk 0:02:47.7]}
7. Bb5+ {[%clk 0:02:29]} 7... Bd7 {[%clk 0:02:47]} 8. Bc4 {[%clk 0:02:25]} 8...
O-O {[%clk 0:02:45.6]} 9. Nge2 {[%clk 0:02:19.5]} 9... a6 {[%clk 0:02:32.7]} 10.
a4 {[%clk 0:02:17.3]} 10... Qc7 {[%clk 0:02:03.3]} 11. Bb3 {[%clk 0:02:13.7]}
11... Bf5 {[%clk 0:01:52.3]} 12. O-O {[%clk 0:02:13.1]} 12... Rd8 {[%clk
0:01:50.3]} 13. Nf4 {[%clk 0:02:11.3]} 13... Nbd7 {[%clk 0:01:46.3]} 14. Re1
{[%clk 0:02:09.1]} 14... Bf8 {[%clk 0:01:33]} 15. h3 {[%clk 0:02:03]} 15... h5
{[%clk 0:01:31.3]} 16. Bd2 {[%clk 0:01:44.8]} 16... Nb6 {[%clk 0:01:31]} 17. Rc1
{[%clk 0:01:01.4]} 17... Rac8 {[%clk 0:01:29.5]} 18. Qf3 {[%clk 0:00:47.9]}
18... Qd6 {[%clk 0:01:19.5]} 19. a5 {[%clk 0:00:42.9]} 19... Nc4 {[%clk
0:01:18.5]} 20. Bxc4 {[%clk 0:00:35.8]} 20... Rxc4 {[%clk 0:01:19.4]} 21. b3
{[%clk 0:00:33.5]} 21... Rcc8 {[%clk 0:01:05.4]} 22. Rb1 {[%clk 0:00:24.8]}
22... Bxb1 {[%clk 0:00:59.8]} 23. Rxb1 {[%clk 0:00:24.4]} 23... Bg7 {[%clk
0:00:54.6]} 24. Re1 {[%clk 0:00:13.4]} 24... Kf8 {[%clk 0:00:52.2]} 25. g4
{[%clk 0:00:13.7]} 25... hxg4 {[%clk 0:00:51.6]} 26. hxg4 {[%clk 0:00:14.6]}
26... Rxc3 {[%clk 0:00:47.8]} 27. Bxc3 {[%clk 0:00:14.2]} 27... Nxd5 {[%clk
0:00:47.3]} 28. Nxd5 {[%clk 0:00:14.2]} 28... Qxd5 {[%clk 0:00:48.2]} 29. Qg3
{[%clk 0:00:14.3]} 29... Bxd4 {[%clk 0:00:43.3]} 30. Bxd4 {[%clk 0:00:14.8]}
30... Qxd4 {[%clk 0:00:43.8]} 31. Qc7 {[%clk 0:00:15.7]} 31... Rd7 {[%clk
0:00:42.9]} 32. Qc8+ {[%clk 0:00:16.2]} 32... Kg7 {[%clk 0:00:42.8]} 33. Qc2
{[%clk 0:00:15.9]} 33... Qxg4+ {[%clk 0:00:42.1]} 34. Kf1 {[%clk 0:00:15.4]}
34... Qd4 {[%clk 0:00:41.9]} 35. Qe2 {[%clk 0:00:15.3]} 35... Qd3 {[%clk
0:00:41.3]} 36. Qxd3 {[%clk 0:00:06.5]} 36... Rxd3 {[%clk 0:00:42.2]} 37. Rxe7
{[%clk 0:00:06.8]} 37... Rxb3 {[%clk 0:00:42.3]} 38. Rc7 {[%clk 0:00:07.7]}
38... Rb5 {[%clk 0:00:42]} 39. Ke2 {[%clk 0:00:01.2]} 39... g5 {[%clk
0:00:42.2]} 40. Ke3 {[%clk 0:00:02.1]} 40... Kg6 {[%clk 0:00:42.2]} 41. Ke4
{[%clk 0:00:03]} 41... f5+ {[%clk 0:00:41.8]} 42. Ke3 {[%clk 0:00:03.1]} 42...
Rb3+ {[%clk 0:00:41.9]} 43. Ke2 {[%clk 0:00:02.4]} 43... g4 {[%clk 0:00:42.4]}
44. Rd7 {[%clk 0:00:03.3]} 44... Kg5 {[%clk 0:00:42.4]} 45. Rd6 {[%clk
0:00:04.2]} 45... Kf4 {[%clk 0:00:41.8]} 46. Rd5 {[%clk 0:00:04.7]} 46... Rb5
{[%clk 0:00:38.7]} 47. Rd7 {[%clk 0:00:03]} 47... Rb2+ {[%clk 0:00:38.7]} 48.
Ke1 {[%clk 0:00:01.8]} 48... Ke4 {[%clk 0:00:37.1]} 49. Re7+ {[%clk 0:00:01.8]}
49... Kf3 {[%clk 0:00:37.1]} 50. Rd7 {[%clk 0:00:02.7]} 50... Rb1+ {[%clk
0:00:35.9]} 51. Kd2 {[%clk 0:00:03.2]} 51... Kxf2 {[%clk 0:00:36]} 52. Rf7
{[%clk 0:00:04.1]} 52... Rb5 {[%clk 0:00:34.7]} 53. Rf6 {[%clk 0:00:04.5]} 53...
g3 {[%clk 0:00:34.6]} 54. Kd3 {[%clk 0:00:05.3]} 54... g2 {[%clk 0:00:34.8]} 0-1

[Event "*** Titled Tuesday Blitz"]
[Site "Chess.com"]
[Date "2021.02.16"]
[Round "8"]
[White "Angel_Hranitel_37"]
[Black "EugeneRougon"]
[Result "0-1"]
[WhiteElo "2499"]
[BlackElo "2729"]
[TimeControl "180+1"]
[EndTime "11:30:07 PST"]
[Termination "EugeneRougon won by resignation"]

1. g3 {[%clk 0:03:00.7]} 1... d5 {[%clk 0:02:59.5]} 2. d4 {[%clk 0:03:00.9]}
2... Nf6 {[%clk 0:02:56.9]} 3. Bg2 {[%clk 0:03:01.1]} 3... c6 {[%clk 0:02:57]}
4. Nf3 {[%clk 0:03:00.2]} 4... Bf5 {[%clk 0:02:56.3]} 5. c4 {[%clk 0:03:00.3]}
5... e6 {[%clk 0:02:45.6]} 6. O-O {[%clk 0:02:59.8]} 6... h6 {[%clk 0:02:32]} 7.
Nbd2 {[%clk 0:02:57.4]} 7... Bd6 {[%clk 0:02:27.1]} 8. b3 {[%clk 0:02:57.1]}
8... O-O {[%clk 0:02:26.8]} 9. Bb2 {[%clk 0:02:57.7]} 9... Nbd7 {[%clk
0:02:26.9]} 10. Rc1 {[%clk 0:02:56.7]} 10... Qe7 {[%clk 0:02:26.4]} 11. e3
{[%clk 0:02:45.1]} 11... Ba3 {[%clk 0:02:25.8]} 12. Bxa3 {[%clk 0:02:31.5]}
12... Qxa3 {[%clk 0:02:26.7]} 13. Ra1 {[%clk 0:02:31]} 13... a5 {[%clk
0:02:24.7]} 14. Qc1 {[%clk 0:02:29.2]} 14... Qe7 {[%clk 0:02:20.7]} 15. a3
{[%clk 0:02:13.4]} 15... Rfc8 {[%clk 0:01:52.9]} 16. Qb2 {[%clk 0:02:04.7]}
16... b5 {[%clk 0:01:50.2]} 17. Ne5 {[%clk 0:01:30.7]} 17... Nxe5 {[%clk
0:01:41.1]} 18. dxe5 {[%clk 0:01:31.6]} 18... Nd7 {[%clk 0:01:41.9]} 19. e4
{[%clk 0:01:18.7]} 19... dxe4 {[%clk 0:01:30.7]} 20. Nxe4 {[%clk 0:01:18]} 20...
Bxe4 {[%clk 0:01:27.4]} 21. Bxe4 {[%clk 0:01:16.6]} 21... bxc4 {[%clk
0:01:26.8]} 22. bxc4 {[%clk 0:01:16.4]} 22... Qc5 {[%clk 0:01:26.3]} 23. Qe2
{[%clk 0:00:31.5]} 23... Nxe5 {[%clk 0:01:23.3]} 24. Rfe1 {[%clk 0:00:23.6]}
24... Rab8 {[%clk 0:01:20]} 25. Qh5 {[%clk 0:00:23]} 25... Rb2 {[%clk
0:01:12.1]} 26. Re3 {[%clk 0:00:11.1]} 26... Rxf2 {[%clk 0:01:00.2]} 27. Rae1
{[%clk 0:00:02.8]} 27... Rf6 {[%clk 0:00:30.9]} 28. Kh1 {[%clk 0:00:03.3]} 28...
Qd4 {[%clk 0:00:27.2]} 29. Qh4 {[%clk 0:00:03.6]} 29... c5 {[%clk 0:00:22.8]}
30. Qh3 {[%clk 0:00:02.5]} 30... Rb8 {[%clk 0:00:19.5]} 31. Qg2 {[%clk
0:00:03.1]} 31... Rb2 {[%clk 0:00:19]} 32. Bc2 {[%clk 0:00:03.4]} 32... Nxc4
{[%clk 0:00:17.9]} 33. R3e2 {[%clk 0:00:04]} 33... Rb8 {[%clk 0:00:17.2]} 34.
Rd1 {[%clk 0:00:04.5]} 34... Qc3 {[%clk 0:00:17]} 35. Qe4 {[%clk 0:00:05.2]}
35... g6 {[%clk 0:00:15.5]} 36. Rd3 {[%clk 0:00:05.5]} 36... Qa1+ {[%clk
0:00:15.1]} 37. Kg2 {[%clk 0:00:05.9]} 37... Nxa3 {[%clk 0:00:09.2]} 38. Rf3
{[%clk 0:00:04]} 38... Rxf3 {[%clk 0:00:07.9]} 39. Qxf3 {[%clk 0:00:03.4]} 39...
Nxc2 {[%clk 0:00:08.3]} 40. Rxc2 {[%clk 0:00:04.3]} 40... Rb2 {[%clk 0:00:07.9]}
41. Qa8+ {[%clk 0:00:04.8]} 41... Kg7 {[%clk 0:00:07.9]} 42. Qe4 {[%clk
0:00:05.7]} 42... Rxc2+ {[%clk 0:00:07.5]} 43. Qxc2 {[%clk 0:00:06.6]} 43... Qd4
{[%clk 0:00:08.1]} 44. Qb3 {[%clk 0:00:06]} 44... Qd5+ {[%clk 0:00:07.7]} 45.
Qf3 {[%clk 0:00:06.6]} 45... a4 {[%clk 0:00:07.2]} 0-1

[Event "*** Titled Tuesday Blitz"]
[Site "Chess.com"]
[Date "2021.02.16"]
[Round "8"]
[White "JoakimVonAnd"]
[Black "Margency"]
[Result "0-1"]
[WhiteElo "2564"]
[BlackElo "2687"]
[TimeControl "180+1"]
[EndTime "11:30:10 PST"]
[Termination "Margency won by resignation"]

1. d4 {[%clk 0:03:00.9]} 1... d5 {[%clk 0:02:59.4]} 2. c4 {[%clk 0:02:59]} 2...
e6 {[%clk 0:02:59.9]} 3. Nc3 {[%clk 0:02:58.6]} 3... c5 {[%clk 0:03:00.1]} 4.
cxd5 {[%clk 0:02:58.2]} 4... exd5 {[%clk 0:03:01]} 5. Nf3 {[%clk 0:02:56.6]}
5... Nc6 {[%clk 0:03:01]} 6. dxc5 {[%clk 0:02:55.8]} 6... d4 {[%clk 0:03:01.9]}
7. Na4 {[%clk 0:02:55.9]} 7... Bxc5 {[%clk 0:03:02.1]} 8. Nxc5 {[%clk
0:02:56.8]} 8... Qa5+ {[%clk 0:03:02.7]} 9. Bd2 {[%clk 0:02:57.3]} 9... Qxc5
{[%clk 0:03:03.3]} 10. Rc1 {[%clk 0:02:57.9]} 10... Qe7 {[%clk 0:02:55.7]} 11.
Bg5 {[%clk 0:02:18.3]} 11... Nf6 {[%clk 0:02:53.6]} 12. a3 {[%clk 0:02:14.3]}
12... O-O {[%clk 0:02:50.4]} 13. g3 {[%clk 0:02:07.6]} 13... Rd8 {[%clk
0:02:47.4]} 14. Bg2 {[%clk 0:02:06.2]} 14... d3 {[%clk 0:02:45.4]} 15. e3 {[%clk
0:01:57.1]} 15... h6 {[%clk 0:02:40.9]} 16. Bxf6 {[%clk 0:01:56.5]} 16... Qxf6
{[%clk 0:02:40.2]} 17. Qd2 {[%clk 0:01:55.5]} 17... Bg4 {[%clk 0:02:26.8]} 18.
Ng1 {[%clk 0:01:11.4]} 18... Na5 {[%clk 0:02:01.7]} 19. Rc3 {[%clk 0:01:03.7]}
19... Rac8 {[%clk 0:01:20.7]} 20. Rxc8 {[%clk 0:01:02.5]} 20... Rxc8 {[%clk
0:01:20.3]} 21. f3 {[%clk 0:01:03.1]} 21... Nb3 {[%clk 0:00:51.4]} 22. Qxd3
{[%clk 0:00:51.8]} 22... Qxb2 {[%clk 0:00:41.3]} 23. Ne2 {[%clk 0:00:51.8]}
23... Nc1 {[%clk 0:00:20.3]} 24. Qd2 {[%clk 0:00:40.2]} 24... Qb1 {[%clk
0:00:18.7]} 25. Nc3 {[%clk 0:00:37.3]} 25... Qb3 {[%clk 0:00:12.1]} 26. O-O
{[%clk 0:00:20.3]} 26... Qxc3 {[%clk 0:00:09.6]} 27. Qxc3 {[%clk 0:00:19.3]}
27... Ne2+ {[%clk 0:00:09.2]} 28. Kf2 {[%clk 0:00:18.7]} 28... Nxc3 {[%clk
0:00:09.2]} 29. fxg4 {[%clk 0:00:18.8]} 29... b5 {[%clk 0:00:09.2]} 30. h4
{[%clk 0:00:14]} 30... a5 {[%clk 0:00:09.3]} 31. Bb7 {[%clk 0:00:11.8]} 31...
Rd8 {[%clk 0:00:08.2]} 32. Rc1 {[%clk 0:00:11]} 32... b4 {[%clk 0:00:08.1]} 33.
axb4 {[%clk 0:00:11]} 33... axb4 {[%clk 0:00:09]} 34. Ba6 {[%clk 0:00:10.1]}
34... Rd2+ {[%clk 0:00:08.8]} 35. Kf3 {[%clk 0:00:10.5]} 35... Kf8 {[%clk
0:00:07.4]} 36. Bc4 {[%clk 0:00:10.7]} 36... Ke7 {[%clk 0:00:07.2]} 37. g5
{[%clk 0:00:10.9]} 37... hxg5 {[%clk 0:00:05.4]} 38. hxg5 {[%clk 0:00:11.8]}
38... g6 {[%clk 0:00:06]} 39. e4 {[%clk 0:00:11.2]} 39... Rd4 {[%clk 0:00:05.6]}
40. Bd5 {[%clk 0:00:11.2]} 40... Rd3+ {[%clk 0:00:05.4]} 41. Kf4 {[%clk
0:00:11]} 41... Ne2+ {[%clk 0:00:05.4]} 42. Kg4 {[%clk 0:00:10.9]} 42... Nxc1
{[%clk 0:00:06]} 43. Bc4 {[%clk 0:00:10.4]} 43... Rc3 {[%clk 0:00:06.5]} 44. Bd5
{[%clk 0:00:11.2]} 44... b3 {[%clk 0:00:06.8]} 45. Bxb3 {[%clk 0:00:11.4]} 45...
Nxb3 {[%clk 0:00:07.7]} 0-1

[Event "*** Titled Tuesday Blitz"]
[Site "Chess.com"]
[Date "2021.02.16"]
[Round "8"]
[White "Guzman70"]
[Black "LileKoridze"]
[Result "1-0"]
[WhiteElo "2251"]
[BlackElo "2360"]
[TimeControl "180+1"]
[EndTime "11:30:10 PST"]
[Termination "Guzman70 won by resignation"]

1. d4 {[%clk 0:03:00.9]} 1... Nf6 {[%clk 0:02:59.5]} 2. Bf4 {[%clk 0:03:00.5]}
2... d5 {[%clk 0:02:59]} 3. e3 {[%clk 0:02:58.6]} 3... c5 {[%clk 0:02:55]} 4. c3
{[%clk 0:02:58.2]} 4... Nc6 {[%clk 0:02:54.4]} 5. Nd2 {[%clk 0:02:58.3]} 5...
Bg4 {[%clk 0:02:30.1]} 6. Qb3 {[%clk 0:02:56.7]} 6... Qc8 {[%clk 0:02:16]} 7. h3
{[%clk 0:02:51.3]} 7... Bd7 {[%clk 0:02:09.7]} 8. Ngf3 {[%clk 0:02:26.2]} 8...
e6 {[%clk 0:02:00.5]} 9. Ne5 {[%clk 0:02:11.3]} 9... Be7 {[%clk 0:01:59.6]} 10.
Nxd7 {[%clk 0:01:58.5]} 10... Qxd7 {[%clk 0:01:59.2]} 11. Be2 {[%clk 0:01:52]}
11... O-O {[%clk 0:01:57.8]} 12. O-O {[%clk 0:01:49.8]} 12... a6 {[%clk
0:01:54.9]} 13. Nf3 {[%clk 0:01:46.7]} 13... b5 {[%clk 0:01:54.1]} 14. Ne5
{[%clk 0:01:45.5]} 14... Nxe5 {[%clk 0:01:53.5]} 15. Bxe5 {[%clk 0:01:43.5]}
15... Ne4 {[%clk 0:01:53.8]} 16. Qc2 {[%clk 0:01:35.5]} 16... Rfc8 {[%clk
0:01:41.1]} 17. Bd3 {[%clk 0:01:23.3]} 17... cxd4 {[%clk 0:01:35.5]} 18. exd4
{[%clk 0:01:16.2]} 18... b4 {[%clk 0:00:50.7]} 19. Bxe4 {[%clk 0:00:38.5]} 19...
dxe4 {[%clk 0:00:48.6]} 20. Qxe4 {[%clk 0:00:38.5]} 20... bxc3 {[%clk
0:00:41.6]} 21. bxc3 {[%clk 0:00:38.1]} 21... a5 {[%clk 0:00:36.9]} 22. c4
{[%clk 0:00:37]} 22... a4 {[%clk 0:00:28.3]} 23. c5 {[%clk 0:00:36.7]} 23... Ra6
{[%clk 0:00:28.3]} 24. Rab1 {[%clk 0:00:34.5]} 24... Rac6 {[%clk 0:00:26.3]} 25.
Rfd1 {[%clk 0:00:32.8]} 25... h6 {[%clk 0:00:13.2]} 26. Qg4 {[%clk 0:00:32]}
26... Bf8 {[%clk 0:00:12.4]} 27. a3 {[%clk 0:00:29]} 27... Qd5 {[%clk
0:00:12.1]} 28. Qf3 {[%clk 0:00:27.9]} 28... Qd7 {[%clk 0:00:09.9]} 29. Qe4
{[%clk 0:00:24.9]} 29... Qa7 {[%clk 0:00:05.2]} 30. Rb4 {[%clk 0:00:21.8]} 30...
Qa5 {[%clk 0:00:04.4]} 31. Qc2 {[%clk 0:00:21.2]} 31... Ra8 {[%clk 0:00:03.9]}
32. Rdb1 {[%clk 0:00:20]} 32... f6 {[%clk 0:00:03.7]} 33. Bg3 {[%clk 0:00:19.5]}
33... e5 {[%clk 0:00:04]} 34. Rb5 {[%clk 0:00:18.2]} 34... Qc7 {[%clk
0:00:03.6]} 35. Qc4+ {[%clk 0:00:16.8]} 35... Kh8 {[%clk 0:00:02.9]} 36. Rb7
{[%clk 0:00:17.4]} 36... Qc8 {[%clk 0:00:02.8]} 37. R1b5 {[%clk 0:00:17]} 37...
exd4 {[%clk 0:00:03.1]} 38. Qxd4 {[%clk 0:00:17.3]} 38... Bxc5 {[%clk
0:00:03.5]} 39. Qg4 {[%clk 0:00:16.7]} 39... Bf8 {[%clk 0:00:03]} 40. Qg6 {[%clk
0:00:16.2]} 40... Rc1+ {[%clk 0:00:02.9]} 41. Kh2 {[%clk 0:00:16.2]} 41... Rc5
{[%clk 0:00:02.9]} 42. R5b6 {[%clk 0:00:14.2]} 42... Rg5 {[%clk 0:00:03.2]} 43.
Qe4 {[%clk 0:00:13.2]} 43... Qe8 {[%clk 0:00:03.3]} 44. Qxe8 {[%clk 0:00:13]}
44... Rxe8 {[%clk 0:00:04.2]} 45. Rb8 {[%clk 0:00:13.8]} 45... Rxb8 {[%clk
0:00:04]} 46. Rxb8 {[%clk 0:00:14.7]} 46... Kg8 {[%clk 0:00:04.3]} 47. Bd6
{[%clk 0:00:12.5]} 47... Kh7 {[%clk 0:00:04.5]} 48. Bxf8 {[%clk 0:00:12.6]}
48... Rd5 {[%clk 0:00:04.7]} 49. Bb4 {[%clk 0:00:13.5]} 1-0

[Event "*** Titled Tuesday Blitz"]
[Site "Chess.com"]
[Date "2021.02.16"]
[Round "8"]
[White "Sadykov_Ramil"]
[Black "AlexOstrovskiy"]
[Result "1-0"]
[WhiteElo "2581"]
[BlackElo "2744"]
[TimeControl "180+1"]
[EndTime "11:30:11 PST"]
[Termination "Sadykov_Ramil won on time"]

1. e4 {[%clk 0:03:00.9]} 1... c6 {[%clk 0:02:57.9]} 2. Nc3 {[%clk 0:03:00.4]}
2... d5 {[%clk 0:02:58.8]} 3. Nf3 {[%clk 0:03:00.5]} 3... a6 {[%clk 0:02:58.1]}
4. d4 {[%clk 0:02:55.1]} 4... Bg4 {[%clk 0:02:57.1]} 5. Be2 {[%clk 0:02:45.7]}
5... e6 {[%clk 0:02:56.7]} 6. h3 {[%clk 0:02:39.3]} 6... Bh5 {[%clk 0:02:56.3]}
7. O-O {[%clk 0:02:31]} 7... Nf6 {[%clk 0:02:56.4]} 8. e5 {[%clk 0:02:13.3]}
8... Nfd7 {[%clk 0:02:56]} 9. Ne1 {[%clk 0:02:06.2]} 9... Bxe2 {[%clk
0:02:52.4]} 10. Nxe2 {[%clk 0:02:07.1]} 10... c5 {[%clk 0:02:53.3]} 11. c3
{[%clk 0:01:56.9]} 11... Nc6 {[%clk 0:02:53.2]} 12. Be3 {[%clk 0:01:52]} 12...
Be7 {[%clk 0:02:50.8]} 13. f4 {[%clk 0:01:47.8]} 13... g6 {[%clk 0:02:50.9]} 14.
Nf3 {[%clk 0:01:45.9]} 14... b5 {[%clk 0:02:48.1]} 15. dxc5 {[%clk 0:01:13.1]}
15... Nxc5 {[%clk 0:02:46.3]} 16. Bxc5 {[%clk 0:01:09.8]} 16... Bxc5+ {[%clk
0:02:45.9]} 17. Ned4 {[%clk 0:01:10.7]} 17... Qb6 {[%clk 0:02:43.7]} 18. Kh1
{[%clk 0:01:09.2]} 18... O-O {[%clk 0:02:33.8]} 19. f5 {[%clk 0:00:59.6]} 19...
exf5 {[%clk 0:02:25.7]} 20. e6 {[%clk 0:00:59.1]} 20... Nd8 {[%clk 0:02:11.1]}
21. exf7+ {[%clk 0:00:38.9]} 21... Nxf7 {[%clk 0:02:12]} 22. Qb3 {[%clk
0:00:37.4]} 22... Rad8 {[%clk 0:02:09.1]} 23. Rad1 {[%clk 0:00:36.6]} 23... Rfe8
{[%clk 0:02:07.8]} 24. Rd3 {[%clk 0:00:33.5]} 24... Re4 {[%clk 0:02:05.5]} 25.
Rfd1 {[%clk 0:00:33]} 25... Qd6 {[%clk 0:01:43.8]} 26. Nc2 {[%clk 0:00:23.9]}
26... Qf4 {[%clk 0:01:15.8]} 27. Rxd5 {[%clk 0:00:22.7]} 27... Rxd5 {[%clk
0:01:09.2]} 28. Qxd5 {[%clk 0:00:18.3]} 28... Bd6 {[%clk 0:01:05.1]} 29. Ncd4
{[%clk 0:00:14.9]} 29... Qe3 {[%clk 0:00:27.5]} 30. Qa8+ {[%clk 0:00:14.4]}
30... Kg7 {[%clk 0:00:27.1]} 31. Qxa6 {[%clk 0:00:14.5]} 31... b4 {[%clk
0:00:12.3]} 32. Qd3 {[%clk 0:00:14.3]} 32... bxc3 {[%clk 0:00:11.1]} 33. Qxc3
{[%clk 0:00:11.3]} 33... Qxc3 {[%clk 0:00:06]} 34. bxc3 {[%clk 0:00:12.2]} 34...
Re3 {[%clk 0:00:06.9]} 35. Nb5 {[%clk 0:00:10]} 35... Bg3 {[%clk 0:00:06.4]} 36.
Kg1 {[%clk 0:00:07.8]} 36... g5 {[%clk 0:00:06.6]} 37. Kf1 {[%clk 0:00:07.6]}
37... g4 {[%clk 0:00:06.4]} 38. Nfd4 {[%clk 0:00:07.5]} 38... Kf6 {[%clk
0:00:05.3]} 39. a4 {[%clk 0:00:04.9]} 39... Ng5 {[%clk 0:00:04.4]} 40. a5 {[%clk
0:00:05]} 40... Ne4 {[%clk 0:00:04.9]} 41. a6 {[%clk 0:00:04.9]} 41... Nd2+
{[%clk 0:00:05.2]} 42. Kg1 {[%clk 0:00:04.4]} 42... Ne4 {[%clk 0:00:02.5]} 43.
a7 {[%clk 0:00:04.2]} 43... Bf2+ {[%clk 0:00:03]} 44. Kf1 {[%clk 0:00:04.3]}
44... g3 {[%clk 0:00:02.3]} 45. Nf3 {[%clk 0:00:04.2]} 1-0